bitfinex/quotes_ETHUSD_20260313
["timestamp","ask_amount","ask_price","bid_price","bid_amount"]
[1773442570423,0.65909682,2088.4,2088.1,2.22694838]
[1773442570625,0.70699657,2088.4,2088.1,2.22694838]
[1773442571943,0.04789975,2088.4,2088.1,2.22694838]
[1773442574571,1.24495939,2088.5,2088.2,0.70294838]
[1773442575074,0.04789975,2088.5,2088.2,0.70294838]
[1773442575472,1.24494106,2088.5,2088.2,0.70294838]
[1773442575680,1.90403788,2088.5,2088.2,0.70294838]
[1773442575847,1.90403788,2088.5,2088.1,2.72126056]
[1773442575848,0.70699657,2088.5,2088.1,2.72126056]
[1773442576046,0.70699657,2088.5,2088.2,0.70294838]
[1773442576349,0.65909682,2088.5,2088.2,0.70294838]
[1773442576544,1.19697133,2088.7,2088.2,0.70294838]
[1773442576545,0.70699657,2088.7,2088.2,0.70294838]
[1773442576767,0.65909682,2089.1,2088.4,0.70294838]
[1773442576949,0.65909682,2089.6,2088.4,0.70294838]
[1773442577348,0.65909682,2089.4,2088.4,0.70294838]
[1773442578573,1.19657301,2089.3,2088.4,1.197055]
[1773442578774,0.65909682,2089.2,2088.5,0.70294838]
[1773442581478,0.66412332,2089.0,2088.3,0.66082543]
[1773442581646,0.56412332,2089.0,2088.3,0.66082543]
[1773442581851,0.56412332,2089.0,2088.2,0.66082543]
[1773442582583,0.56512332,2089.0,2088.2,0.66082543]
[1773442582749,0.56512332,2089.0,2088.1,2.72121569]
[1773442582750,0.56512332,2089.0,2088.4,0.66082543]
[1773442583451,0.56512332,2089.0,2088.6,0.66082543]
[1773442583452,0.001,2089.0,2088.6,0.66082543]
[1773442583680,0.001,2089.0,2088.7,2.17982543]
[1773442586361,0.66512332,2089.0,2088.7,1.519]
[1773442588988,1.19680214,2088.9,2088.7,1.519]
[1773442589287,0.66512332,2089.0,2088.7,1.519]
[1773442589288,1.86191172,2089.0,2088.7,1.519]
[1773442590403,0.00745317,2089.8,2088.7,1.519]
[1773442590687,0.66412332,2089.4,2088.7,1.519]
[1773442591956,0.66412332,2089.2,2088.7,1.519]
[1773442592487,0.66412332,2089.0,2088.7,1.519]
[1773442592985,0.66412332,2088.6,2088.2,0.66082543]
[1773442593371,0.66412332,2088.6,2088.2,0.70871356]
[1773442593569,0.08506146,2088.7,2088.2,0.70871356]
[1773442593771,5.94532361,2088.6,2088.2,0.70871356]
[1773442594187,5.94532361,2088.6,2088.3,2.08982543]
[1773442594495,5.94532361,2088.6,2088.4,0.04788354]
[1773442594700,5.94532361,2088.6,2088.3,2.08982543]
[1773442595693,0.66412332,2088.8,2088.4,0.70870897]
[1773442595858,5.94532361,2088.7,2088.5,0.0011]
[1773442596057,7.80626225,2088.9,2088.5,0.0011]
[1773442596269,0.66412332,2088.8,2088.5,0.0011]
[1773442596470,0.66412332,2088.8,2088.4,0.66082543]
[1773442596471,0.08396146,2088.5,2088.4,0.66082543]
[1773442596671,0.08396146,2088.5,2088.4,1.90579765]
[1773442598476,0.08396146,2088.5,2088.4,0.70870897]
[1773442599276,0.08396146,2088.5,2088.4,0.66082543]
[1773442599498,0.08396146,2088.5,2088.4,0.70870897]
[1773442600399,0.08396146,2088.5,2088.4,1.90579765]
[1773442601705,1.1968423,2088.9,2088.5,0.66082543]
[1773442601879,5.94532361,2088.8,2088.5,0.66082543]
[1773442603703,5.94532361,2088.7,2088.4,1.24497222]
[1773442603996,5.94532361,2088.7,2088.4,1.90579765]
[1773442606121,0.77738446,2088.7,2088.4,0.70870897]
[1773442606305,5.94532361,2088.6,2088.4,0.66082543]
[1773442606894,5.94532361,2088.6,2088.3,3.35489512]
[1773442608292,5.94532361,2088.6,2088.4,0.72765052]
[1773442610509,5.94532361,2088.6,2088.5,0.0011]
[1773442610825,0.77738446,2088.5,2088.3,1.4301]
[1773442611401,0.72865188,2088.3,2088.0,0.0011]
[1773442611599,0.72865188,2088.3,2087.8,0.0011]
[1773442611799,0.72865188,2088.1,2087.8,0.0011]
[1773442612710,0.72865188,2088.1,2087.9,1.502]
[1773442612899,5.94422361,2088.0,2087.9,1.502]
[1773442614113,0.72865188,2088.3,2087.9,2.22999151]
[1773442614450,0.72865188,2088.4,2088.0,1.92528683]
[1773442615445,0.72865188,2088.8,2088.1,0.77588193]
[1773442616653,0.72865188,2088.8,2088.2,1.92519484]
[1773442616654,0.72865188,2088.7,2088.2,1.92519484]
[1773442616947,0.72865188,2088.7,2088.1,1.19725549]
[1773442617448,0.72865188,2088.7,2088.0,1.92526588]
[1773442617849,0.72865188,2088.7,2088.1,0.72799151]
[1773442619659,1.19697404,2088.6,2088.1,0.72799151]
[1773442619839,0.72865188,2088.5,2088.1,0.72799151]
[1773442620333,0.72865188,2088.5,2088.1,1.9252282]
[1773442620661,0.72865188,2088.6,2088.2,0.72799151]
[1773442620860,0.72865188,2088.6,2088.1,1.19723669]
[1773442620861,0.72865188,2088.8,2088.3,0.72799151]
[1773442621469,0.72865188,2088.8,2088.1,1.9252282]
[1773442621640,0.72865188,2088.6,2087.9,3.42731065]
[1773442622564,0.72865188,2088.6,2088.0,0.72799151]
[1773442623742,0.72865188,2088.6,2088.3,0.0011]
[1773442623743,0.72865188,2088.4,2088.3,0.0011]
[1773442624152,0.72965188,2088.4,2088.3,0.0011]
[1773442625838,1.92674056,2088.4,2088.3,0.0011]
[1773442627871,0.72965188,2088.4,2088.3,0.0011]
[1773442629884,1.92674056,2088.4,2088.3,0.0011]
[1773442635285,0.72865188,2088.3,2088.0,0.04899272]
[1773442635578,1.19808868,2088.4,2088.1,0.72799151]
[1773442635895,0.001,2088.4,2088.1,0.72799151]
[1773442638282,0.001,2088.4,2088.2,0.72909151]
[1773442639685,0.72965188,2088.4,2088.2,0.0011]
[1773442641886,1.92675242,2088.4,2088.2,0.0011]
[1773442642089,0.77965402,2088.3,2087.9,1.526]
[1773442642383,1.97685735,2088.2,2087.9,1.526]
[1773442642570,1.97685735,2088.2,2087.9,2.28259415]
[1773442645394,4.78859239,2088.3,2087.9,2.28259415]
[1773442645395,1.9768356,2088.3,2087.9,2.28259415]
[1773442647793,4.78943475,2088.4,2087.9,2.28259415]
[1773442647794,0.001,2088.4,2088.0,0.75659415]
[1773442648098,0.001,2088.4,2088.2,0.75659415]
[1773442649393,0.001,2088.4,2087.9,3.47995214]
[1773442649394,0.77965402,2088.3,2087.9,3.47995214]
[1773442650898,0.77965402,2088.3,2087.9,2.28259415]
[1773442651283,0.77965402,2088.3,2088.1,0.0011]
[1773442651477,0.001,2088.2,2088.1,0.0011]
[1773442665911,0.001,2088.2,2088.1,0.75769415]
[1773442666593,0.001,2088.2,2088.1,0.0011]
[1773442671707,0.001,2088.2,2088.1,0.74555465]
[1773442671908,0.001,2088.2,2088.1,0.0011]
[1773442674123,1.97827279,2088.2,2087.8,0.74555465]
[1773442674721,1.97827279,2088.2,2087.8,0.0011]
[1773442674722,0.78006946,2088.1,2087.8,0.0011]
[1773442675410,0.78006946,2088.1,2087.8,1.5221]
[1773442676016,0.78006946,2088.1,2087.7,0.0011]
[1773442676737,1.97738746,2088.0,2087.7,0.0011]
[1773442677402,1.197318,2088.0,2087.7,0.0011]
[1773442678108,1.197318,2088.0,2087.6,0.64665465]
[1773442678311,1.97738746,2088.0,2087.6,0.64665465]
[1773442679435,1.97738746,2088.0,2087.7,1.526]
[1773442679731,1.97738746,2088.0,2087.9,0.0011]
[1773442679932,1.97838746,2088.0,2087.9,0.0011]
[1773442680502,1.198318,2088.0,2087.9,0.0011]
[1773442682752,1.97838746,2088.0,2087.9,0.0011]
[1773442684827,0.001,2088.0,2087.9,0.0011]
[1773442686667,0.78106946,2088.0,2087.9,0.0011]
[1773442686880,0.001,2088.0,2087.9,0.74555465]
[1773442687080,0.78106946,2088.2,2088.0,0.74445465]
[1773442687081,1.19822404,2088.2,2088.0,0.74445465]
[1773442687559,0.001,2088.2,2088.0,0.74445465]
[1773442687741,1.19820349,2088.2,2088.0,0.74445465]
[1773442688363,0.001,2088.2,2088.0,0.74445465]
[1773442688593,1.97827894,2088.2,2087.9,0.74555465]
[1773442689365,0.78006946,2088.4,2087.9,1.94291821]
[1773442689568,1.9772087,2088.4,2088.0,0.74445465]
[1773442689767,1.19713924,2088.4,2088.0,0.74445465]
[1773442689968,0.78006946,2088.3,2088.0,0.74445465]
[1773442690581,0.78006946,2088.3,2087.9,1.94291821]
[1773442692077,0.78006946,2088.5,2088.0,0.74445465]
[1773442692599,0.68006946,2088.5,2088.0,0.74445465]
[1773442696290,0.68006946,2088.5,2087.9,0.0011]
[1773442696291,0.78006946,2088.3,2087.9,0.0011]
[1773442696496,0.78006946,2088.3,2087.9,1.19847148]
[1773442696706,0.78006946,2088.3,2087.9,1.94292613]
[1773442697203,0.78006946,2088.4,2088.0,0.74445465]
[1773442697505,0.78006946,2088.4,2087.9,0.74555465]
[1773442698307,1.197146,2088.3,2087.9,0.74555465]
[1773442698604,1.97721546,2088.3,2087.9,0.74555465]
[1773442704997,1.97721546,2088.3,2088.1,0.0011]
[1773442705220,1.97821546,2088.3,2088.1,0.0011]
[1773442705425,0.72106548,2088.2,2088.1,0.0011]
[1773442710624,1.91826881,2088.2,2088.1,0.0011]
[1773442712030,1.19720333,2088.2,2088.1,0.0011]
[1773442713416,0.72106548,2088.2,2088.1,0.0011]
[1773442714829,0.72106548,2088.2,2087.9,0.0011]
[1773442715341,1.91832614,2088.1,2087.9,0.0011]
[1773442716639,0.72106548,2088.0,2087.9,0.0011]
[1773442718446,1.91838348,2088.0,2087.9,0.0011]
[1773442727978,1.197318,2088.0,2087.9,0.0011]
[1773442728778,0.68910623,2088.2,2087.9,0.0011]
[1773442728975,0.68910623,2088.2,2087.9,0.68737414]
[1773442730578,0.68910623,2088.2,2088.1,0.0011]
[1773442730953,1.88630956,2088.2,2088.1,0.0011]
[1773442732167,1.19818924,2088.3,2088.1,0.0011]
[1773442732364,1.19818924,2088.3,2088.1,0.70241782]
[1773442732772,0.001,2088.3,2088.1,0.70241782]
[1773442740494,0.66568536,2088.3,2088.1,0.0011]
[1773442743505,1.19720333,2088.2,2088.1,0.0011]
[1773442743802,1.86188869,2088.2,2088.1,0.0011]
[1773442745392,0.66468536,2088.2,2088.1,0.0011]
[1773442745704,1.19818835,2088.3,2088.1,0.70241782]
[1773442745705,0.001,2088.3,2088.1,0.70241782]
[1773442747600,0.065536,2089.1,2088.1,0.0011]
[1773442747904,0.065536,2089.1,2088.2,0.70131782]
[1773442747905,0.66468536,2089.1,2088.2,0.70131782]
[1773442748107,1.86137292,2089.1,2088.2,0.70131782]
[1773442748318,1.86137292,2089.1,2088.4,0.70131782]
[1773442749594,0.66468536,2089.0,2088.3,2.69812399]
[1773442749800,0.66468536,2089.0,2088.4,0.70131782]
[1773442751508,0.66468536,2089.0,2088.3,2.69812944]
[1773442751817,0.66468536,2088.8,2088.3,3.39944726]
[1773442752027,0.66468536,2088.8,2088.4,0.70131782]
[1773442754210,1.19691674,2088.7,2088.4,0.70131782]
[1773442755501,0.001,2088.6,2088.4,0.70131782]
[1773442759429,0.001,2088.6,2088.5,0.70131782]
[1773442761030,0.63559949,2088.6,2088.3,1.5021]
[1773442761611,1.19703136,2088.5,2088.3,1.5021]
[1773442761814,1.83163085,2088.5,2088.3,1.5021]
[1773442762008,0.63459949,2088.4,2088.3,1.5021]
[1773442762207,0.63459949,2088.4,2088.1,0.63891786]
[1773442763305,0.63459949,2088.4,2088.2,1.52]
[1773442764847,0.63459949,2088.4,2088.1,0.63891786]
[1773442764848,1.83174549,2088.3,2088.1,0.0011]
[1773442765007,1.197146,2088.3,2088.0,0.63891786]
[1773442765623,1.83174549,2088.3,2088.0,0.63891786]
[1773442765809,1.197146,2088.3,2088.0,0.63891786]
[1773442766011,1.83261318,2088.6,2088.1,0.63781786]
[1773442766211,0.63459949,2088.5,2088.2,0.63781786]
[1773442766412,0.63459949,2088.5,2088.1,1.519]
[1773442766625,0.63459949,2088.5,2088.1,2.15681786]
[1773442768242,1.83163085,2088.5,2088.4,0.0011]
[1773442768425,0.63459949,2088.5,2088.4,0.0011]
[1773442768627,1.83163085,2088.5,2088.4,0.0011]
[1773442770142,1.19703136,2088.5,2088.4,0.0011]
[1773442770343,4.78897828,2088.6,2088.4,0.0011]
[1773442770920,5.42357777,2088.6,2088.4,0.0011]
[1773442771824,0.63559949,2088.6,2088.4,0.0011]
[1773442772038,1.83257353,2088.6,2088.4,0.0011]
[1773442774021,0.63459949,2088.5,2088.1,1.5201]
[1773442774244,1.83168781,2088.5,2088.1,1.5201]
[1773442774450,0.63459949,2088.4,2088.1,1.5201]
[1773442774927,1.19708832,2088.5,2088.1,2.15791786]
[1773442775228,1.83257925,2088.6,2088.2,0.63781786]
[1773442775831,0.63459949,2088.5,2088.2,0.63781786]
[1773442776036,0.63459949,2088.5,2088.1,1.5201]
[1773442776452,1.83168817,2088.4,2088.1,1.5201]
[1773442778557,1.83168817,2088.4,2088.1,2.15791786]
[1773442780158,1.83168817,2088.4,2088.1,1.5201]
[1773442780159,0.63459949,2088.3,2088.1,1.5201]
[1773442780761,1.83178779,2088.3,2088.1,1.5201]
[1773442780963,0.63459949,2088.2,2088.1,1.5201]
[1773442781149,0.63459949,2088.2,2088.0,0.0011]
[1773442781556,0.63559949,2088.2,2088.0,0.0011]
[1773442782230,0.63559949,2088.2,2088.0,1.5241]
[1773442783956,1.83281566,2088.2,2088.0,1.5241]
[1773442784742,0.63459949,2088.1,2088.0,1.5241]
[1773442784941,1.83186015,2088.1,2088.0,1.5241]
[1773442785146,0.63459949,2088.1,2088.0,1.5241]
[1773442785533,1.83284441,2088.2,2088.0,1.5241]
[1773442786039,1.19824492,2088.2,2088.0,1.5241]
[1773442786463,1.19824492,2088.2,2088.0,2.17499683]
[1773442786875,1.861239,2088.2,2088.0,1.5241]
[1773442788862,0.66299408,2088.1,2087.9,0.0011]
[1773442789167,1.86031208,2088.0,2087.9,0.0011]
[1773442791892,1.86031208,2088.0,2087.8,0.0011]
[1773442792182,1.8603306,2088.0,2087.8,0.0011]
[1773442792569,1.83815997,2088.1,2087.8,0.0011]
[1773442794363,1.83815997,2088.1,2087.8,0.62765924]
[1773442794777,1.83815997,2088.1,2087.9,0.0011]
[1773442795895,0.64085676,2088.0,2087.9,0.0011]
[1773442797086,1.83817476,2088.0,2087.9,0.0011]
[1773442797891,1.197318,2088.0,2087.9,0.0011]
[1773442798101,1.83907341,2088.2,2087.9,0.62765924]
[1773442799294,0.64185676,2088.2,2087.9,0.62765924]
[1773442799703,1.83906213,2088.2,2087.9,0.62765924]
[1773442800016,0.001,2088.2,2088.0,0.62655924]
[1773442802401,0.001,2088.2,2087.9,1.19847204]
[1773442802608,0.001,2088.2,2088.0,0.62655924]
[1773442802970,0.64085676,2088.4,2088.0,0.62655924]
[1773442803176,0.64085676,2088.4,2087.9,0.62765924]
[1773442803378,0.64005676,2088.4,2087.9,0.0011]
[1773442803576,0.64085676,2088.1,2087.6,1.5263]
[1773442803794,0.64085676,2087.8,2087.4,0.0011]
[1773442804485,0.64085676,2087.0,2086.9,0.0011]
[1773442804807,0.64085676,2087.0,2086.2,1.19941308]
[1773442804808,0.64085676,2087.0,2086.2,1.82600891]
[1773442804971,0.64085676,2087.0,2086.3,1.465]
[1773442805686,0.64085676,2087.0,2086.4,0.0011]
[1773442806492,0.64085676,2086.8,2086.4,0.0011]
[1773442806701,0.64085676,2086.7,2086.4,0.0011]
[1773442807000,0.64085676,2086.7,2086.2,0.0011]
[1773442807207,0.64085676,2086.7,2086.2,0.0022]
[1773442807399,0.64085676,2086.7,2086.5,0.0011]
[1773442807702,0.64085676,2086.7,2086.2,0.0022]
[1773442807703,0.64085676,2086.7,2086.3,0.0011]
[1773442807876,0.64085676,2086.7,2086.0,0.0011]
[1773442808078,0.64085676,2086.7,2086.0,0.0022]
[1773442808279,0.64085676,2086.5,2086.0,0.0011]
[1773442808498,0.64085676,2086.3,2086.0,0.0011]
[1773442809002,0.64085676,2086.2,2085.8,0.0011]
[1773442809204,0.64085676,2086.2,2085.8,0.0022]
[1773442809614,0.64085676,2086.2,2085.8,0.0011]
[1773442810391,1.83909295,2086.4,2085.8,0.62765924]
[1773442810607,1.83909295,2086.4,2085.9,0.0011]
[1773442810816,1.19823619,2086.4,2085.9,0.0011]
[1773442810985,0.64085676,2086.3,2085.9,0.0011]
[1773442811617,1.19823619,2086.4,2086.0,0.0011]
[1773442812910,1.19823619,2086.4,2086.1,0.0011]
[1773442813121,0.64085676,2087.1,2086.1,0.62655924]
[1773442813427,0.64085676,2087.1,2086.3,0.62655924]
[1773442813631,0.64085676,2087.1,2086.3,2.10255924]
[1773442815027,1.83874847,2087.0,2086.3,3.3008004]
[1773442815230,1.83874847,2087.0,2086.3,3.34873214]
[1773442815605,0.64085676,2087.2,2086.4,0.62655924]
[1773442815939,0.64085676,2087.2,2086.6,0.62655924]
[1773442816245,4.7910007,2087.3,2086.6,0.62655924]
[1773442816246,1.19771954,2087.3,2086.6,0.62655924]
[1773442816615,1.8385763,2087.3,2086.6,0.62655924]
[1773442816819,0.64085676,2087.2,2086.6,0.62655924]
[1773442817045,1.83869107,2087.1,2086.6,1.82467723]
[1773442819636,0.64085676,2087.1,2086.6,1.82467723]
[1773442819828,1.19783882,2087.1,2086.6,1.82467723]
[1773442820035,0.64085676,2087.0,2086.8,0.0011]
[1773442820417,0.64185676,2087.0,2086.8,0.0011]
[1773442820940,0.001,2087.0,2086.8,0.0011]
[1773442825485,0.62083995,2086.9,2086.5,0.0011]
[1773442826582,0.62083995,2086.7,2086.5,0.0011]
[1773442826739,0.62083995,2086.7,2086.3,0.0011]
[1773442828953,0.62083995,2086.5,2086.3,0.0011]
[1773442829763,0.62083995,2086.5,2086.1,1.498]
[1773442830542,0.62083995,2086.5,2085.8,1.80404805]
[1773442830739,0.62083995,2086.5,2085.9,0.60438748]
[1773442831789,0.62083995,2086.3,2085.9,0.60438748]
[1773442831995,1.19823619,2086.4,2085.9,0.60438748]
[1773442832198,1.81907614,2086.4,2085.9,0.60438748]
[1773442832696,1.81907614,2086.4,2085.9,1.80290552]
[1773442832880,1.81907614,2086.4,2085.9,0.60438748]
[1773442833206,0.62083995,2086.3,2085.9,0.60438748]
[1773442833392,0.62083995,2086.3,2086.1,0.0011]
[1773442833763,1.81914578,2086.3,2086.1,0.0011]
[1773442834494,0.62083995,2086.2,2086.1,0.0011]
[1773442834714,0.62083995,2086.2,2085.9,0.0011]
[1773442835003,0.62083995,2086.2,2085.7,0.0011]
[1773442836196,0.62083995,2086.0,2085.7,0.0011]
[1773442836397,0.62083995,2086.6,2085.7,0.60548748]
[1773442838992,0.62083995,2086.5,2085.9,0.60438748]
[1773442839190,1.81892774,2086.7,2085.9,0.60438748]
[1773442840112,0.62083995,2086.6,2085.9,0.60438748]
[1773442841524,1.1989974,2086.9,2086.1,0.60438748]
[1773442842300,1.81983735,2086.9,2086.2,1.511]
[1773442842497,1.81983735,2086.9,2086.3,0.60438748]
[1773442842916,1.8150436,2086.9,2086.3,0.60438748]
[1773442843617,1.81879258,2086.9,2086.5,0.60438748]
[1773442844797,0.62083995,2086.9,2086.5,0.60438748]
[1773442845320,1.19795203,2086.9,2086.5,0.60438748]
[1773442845522,0.62183995,2087.0,2086.5,1.80256442]
[1773442847636,1.19794911,2086.9,2086.6,0.60027421]
[1773442848209,0.001,2086.8,2086.6,0.60027421]
[1773442848806,0.001,2086.8,2086.3,1.19829362]
[1773442848807,0.60527779,2086.8,2086.3,1.19829362]
[1773442849113,0.001,2086.8,2086.4,0.60027421]
[1773442849751,0.001,2086.8,2086.6,0.60027421]
[1773442850712,0.001,2086.8,2086.5,1.19817876]
[1773442851037,0.60527779,2086.8,2086.3,5.37176454]
[1773442852120,0.60527779,2086.8,2086.4,0.57877057]
[1773442852313,0.001,2086.8,2086.4,0.57877057]
[1773442854264,0.001,2086.8,2086.5,1.77694933]
[1773442855340,0.001,2086.8,2086.5,0.57877057]
[1773442856464,0.001,2086.8,2086.5,1.19813311]
[1773442856625,0.001,2086.8,2086.6,0.57877057]
[1773442856831,0.001,2086.8,2086.7,1.519]
[1773442862876,0.57769919,2086.8,2086.7,1.519]
[1773442863072,0.57769919,2086.8,2086.5,0.0011]
[1773442863762,0.57769919,2086.8,2086.5,1.19927822]
[1773442864353,0.57769919,2086.8,2086.6,1.523]
[1773442865368,0.57769919,2086.8,2086.6,2.72112037]
[1773442865549,0.57769919,2086.8,2086.7,0.57877057]
[1773442865550,0.001,2086.8,2086.7,0.57877057]
[1773442866144,0.001,2087.0,2086.6,2.72112037]
[1773442866343,0.001,2087.0,2086.8,1.19800651]
[1773442866555,0.001,2087.0,2086.8,1.77677708]
[1773442867846,0.001,2087.0,2086.8,0.57877057]
[1773442870892,0.001,2087.0,2086.6,6.31543017]
[1773442870893,0.57669919,2086.7,2086.6,1.523]
[1773442871983,0.57669919,2086.7,2086.5,1.5271]
[1773442874481,0.57669919,2086.6,2086.3,0.0011]
[1773442875587,1.19817876,2086.5,2086.4,1.525]
[1773442875786,1.77487795,2086.5,2086.4,1.525]
[1773442876280,0.57669919,2086.4,2086.3,0.0011]
[1773442876502,0.001,2086.7,2086.4,0.57877057]
[1773442877381,0.001,2086.7,2086.5,1.526]
[1773442877783,0.001,2086.7,2086.5,2.72415963]
[1773442880216,0.57769919,2086.7,2086.5,1.526]
[1773442880416,0.57769919,2086.7,2086.3,0.0011]
[1773442880906,0.57769919,2086.7,2086.1,0.0011]
[1773442881708,0.57769919,2086.7,2086.2,1.513]
[1773442882013,0.56615595,2086.5,2086.2,1.513]
[1773442884118,0.56615595,2086.4,2086.2,1.513]
[1773442885110,0.56615595,2086.4,2086.1,0.0011]
[1773442886533,0.56615595,2086.3,2086.2,1.52]
[1773442889817,0.56615595,2086.2,2086.1,0.0011]
[1773442891220,0.56615595,2086.2,2086.1,1.5181]
[1773442894940,0.56615595,2086.2,2085.9,0.0011]
[1773442895098,0.56615595,2086.1,2085.9,0.0011]
[1773442895297,1.19836944,2086.2,2085.9,0.0011]
[1773442895508,1.76452539,2086.2,2085.9,0.0011]
[1773442895711,1.19836944,2086.2,2085.9,0.0011]
[1773442895920,0.56615595,2086.1,2085.9,0.0011]
[1773442896427,0.56615595,2086.1,2085.9,1.5171]
[1773442897603,0.56615595,2086.0,2085.9,1.5171]
[1773442900831,0.56615595,2085.9,2085.7,0.0011]
[1773442902031,1.19948296,2086.0,2085.7,1.79091327]
[1773442902032,0.001,2086.0,2085.7,1.79091327]
[1773442902237,0.001,2086.0,2085.8,1.489]
[1773442902408,0.56715595,2086.0,2085.8,1.489]
[1773442905038,0.001,2086.0,2085.8,3.22636697]
[1773442905838,0.56615595,2086.2,2085.9,0.53729578]
[1773442906007,0.56615595,2086.2,2085.9,0.58523647]
[1773442907045,0.56615595,2086.2,2085.8,3.22338796]
[1773442908135,1.76450812,2086.2,2085.8,3.22338796]
[1773442908331,0.56615595,2086.2,2085.8,3.22338796]
[1773442908840,0.55969366,2086.1,2085.8,2.68758035]
[1773442910238,0.55969366,2086.1,2085.8,1.489]
[1773442910421,0.55969366,2086.1,2085.8,2.68757772]
[1773442911834,0.55969366,2086.1,2085.8,3.2160232]
[1773442912151,0.55969366,2086.1,2085.8,3.26396618]
[1773442912509,0.55969366,2086.1,2085.8,2.7355207]
[1773442912844,0.55969366,2086.1,2085.8,3.26249738]
[1773442913050,1.71227788,2086.3,2085.9,0.52697668]
[1773442913649,1.71227788,2086.3,2086.0,0.0011]
[1773442915415,0.51393421,2086.2,2086.0,0.0011]
[1773442916819,0.51393421,2086.2,2085.8,0.0011]
[1773442917052,0.51393421,2086.2,2085.8,1.516]
[1773442917218,0.51393421,2086.2,2085.6,0.0011]
[1773442917418,0.51393421,2086.0,2085.6,0.0011]
[1773442918456,0.51393421,2086.0,2085.7,1.505]
[1773442919860,0.51393421,2085.8,2085.7,1.505]
[1773442920955,0.51393421,2086.0,2085.7,2.70363235]
[1773442921252,0.51393421,2086.2,2085.8,0.51040806]
[1773442921749,1.71234272,2086.1,2085.8,0.51040806]
[1773442921952,0.51393421,2086.0,2085.7,1.505]
[1773442924060,1.19852341,2085.9,2085.7,1.505]
[1773442924357,1.19852341,2085.9,2085.6,0.45805965]
[1773442924525,1.71245762,2085.9,2085.6,0.45805965]
[1773442925669,1.71245762,2085.9,2085.7,1.52]
[1773442926043,1.7121704,2086.4,2085.7,2.71862042]
[1773442926240,0.51393421,2086.3,2085.7,1.9766709]
[1773442926632,0.51393421,2086.3,2085.7,1.52]
[1773442926830,0.001,2086.0,2085.7,1.52]
[1773442927032,0.001,2086.0,2085.8,0.45634104]
[1773442927431,0.001,2086.0,2085.8,0.45744104]
[1773442928141,0.001,2086.0,2085.8,1.19967015]
[1773442928341,0.001,2086.0,2085.9,0.45491419]
[1773442930658,0.001,2086.0,2085.8,1.19967015]
[1773442932453,0.001,2086.0,2085.8,1.64893903]
[1773442932654,0.001,2086.0,2085.8,0.45036888]
[1773442933036,0.001,2086.0,2085.8,1.64894711]
[1773442933868,0.001,2086.0,2085.9,0.44644784]
[1773442934057,1.71227525,2086.3,2085.9,0.44544784]
[1773442934860,4.79306792,2086.4,2086.0,0.44404175]
[1773442934861,1.7121736,2086.4,2086.0,0.44404175]
[1773442935033,1.71315766,2086.5,2086.0,0.44404175]
[1773442935363,0.51393421,2086.4,2086.0,0.44404175]
[1773442937064,0.51393421,2086.3,2086.0,0.44404175]
[1773442939966,0.001,2086.2,2086.0,0.44404175]
[1773442940174,0.51493421,2086.2,2085.8,0.43818446]
[1773442940471,0.51493421,2086.2,2085.8,0.0011]
[1773442940641,0.51493421,2086.2,2085.7,1.52]
[1773442942161,0.5079144,2086.0,2085.7,1.52]
[1773442942363,0.5079144,2086.0,2085.7,1.95405933]
[1773442942751,0.5079144,2086.0,2085.7,1.52]
[1773442944263,0.5079144,2085.8,2085.5,0.0011]
[1773442945468,0.5079144,2085.8,2085.6,1.533]
[1773442946342,0.5079144,2085.6,2085.5,0.0011]
[1773442947565,1.70654017,2085.8,2085.5,1.5351]
[1773442947942,0.5079144,2085.7,2085.5,1.5351]
[1773442949266,1.70656135,2085.7,2085.5,1.5351]
[1773442949640,0.5079144,2085.6,2085.5,1.5351]
[1773442956058,0.53653567,2085.5,2085.2,0.0011]
[1773442957381,0.53653567,2085.5,2085.3,1.535]
[1773442958986,0.53653567,2085.5,2085.1,0.0011]
[1773442958987,0.53653567,2085.4,2085.1,0.0011]
[1773442959650,1.73540393,2085.3,2085.1,0.0011]
[1773442959850,0.53653567,2085.2,2085.1,0.0011]
[1773442960268,0.53653567,2085.2,2085.1,1.5361]
[1773442960566,0.53653567,2085.2,2084.6,1.19927084]
[1773442960567,0.53653567,2085.2,2084.7,0.00550051]
[1773442961646,1.73551413,2085.2,2084.7,0.00550051]
[1773442962044,0.53653567,2085.2,2084.7,0.00550051]
[1773442962265,0.53653567,2085.1,2084.8,1.535]
[1773442962874,0.53653567,2085.1,2084.8,1.53781507]
[1773442964085,1.73557191,2085.1,2084.8,1.53781507]
[1773442964257,1.19896061,2085.2,2084.8,1.53781507]
[1773442964457,1.19896061,2085.2,2084.8,1.535]
[1773442964774,5.33211686,2085.3,2084.8,2.73414436]
[1773442964775,1.73544561,2085.3,2084.8,2.73414436]
[1773442964972,1.73544561,2085.3,2085.0,0.0011]
[1773442965782,5.33164774,2085.5,2085.0,0.0011]
[1773442965986,0.53653567,2085.4,2085.0,0.0011]
[1773442966366,1.73534884,2085.4,2085.0,0.0011]
[1773442966985,1.19881317,2085.4,2085.0,0.0011]
[1773442967288,1.73534884,2085.4,2085.0,0.0011]
[1773442968191,0.53653567,2085.3,2085.0,0.0011]
[1773442968686,1.73544578,2085.3,2085.0,0.0011]
[1773442968896,0.53653567,2085.2,2084.8,0.0011]
[1773442970089,0.53653567,2085.2,2084.5,0.0011]
[1773442970663,0.53598567,2085.0,2084.5,0.0011]
[1773442971188,0.53598567,2084.9,2084.5,0.0011]
[1773442971565,0.53598567,2084.9,2084.6,1.527]
[1773442972588,1.19915579,2084.8,2084.6,1.527]
[1773442972775,0.53598567,2084.7,2084.6,1.527]
[1773442972969,0.53598567,2084.7,2084.5,0.0011]
[1773442973292,0.53598567,2084.9,2084.5,0.0011]
[1773442974582,0.53598567,2084.9,2084.6,1.518]
[1773442974784,1.73513953,2084.9,2084.6,1.518]
[1773442975300,0.53598567,2084.8,2084.6,1.518]
[1773442976200,0.53598567,2085.0,2084.6,1.518]
[1773442976393,4.79578643,2085.6,2084.7,0.04796853]
[1773442976394,1.73473896,2085.5,2084.7,0.04796853]
[1773442976587,1.73568573,2085.6,2084.7,0.04796853]
[1773442976791,0.001,2085.6,2084.6,3.47171103]
[1773442976984,0.001,2085.6,2084.9,0.75446761]
[1773442977987,0.001,2085.0,2084.9,0.75446761]
[1773442978198,0.001,2085.6,2084.9,0.75446761]
[1773442980703,0.53598567,2085.9,2085.2,0.75446761]
[1773442980704,1.19852461,2085.9,2085.2,0.75446761]